Workbook

Sheet Hinweise
A1: Geschäftsgang 3
A3: Voraussetzungen
A4: Um den Geschäftsgang buchen zu können müssen Sie Kenntnisse über die folgenden Lehrninhalte haben:
A5: Buchungen auf Bestandskonten
A6: Buchungen auf Erfolgskonten
A7: Bestandsveränderungen
A8: Umsatzsteuer
A10: Vorgehensweise
A11: 1. Wählen Sie die Tabelle "Grundbuch".
A13: 2. Buchen Sie die Geschäftsvorfälle
A14: entweder durch Direkteingabe in die entsprechenden Felder des Grundbuchs (Kontennummern und Beträge)
A15: oder durch Aufruf von Buchungsfenstern. (Klicken Sie dazu jeweils auf die Schaltfläche "Buchung" und beenden
A16: Sie die Eingabe mit "OK".)
A17: Die Kontennummern sind vierstellig anzugeben. (siehe Kontenplan). Bei zusammengesetzten Buchungssätzen
A18: sind die Buchungen nach der Höhe der Beträge geordnet vorzunehmen.
A20: 3. Sie können sich den Kontenplan mit Kontennummern jederzeit durch Klick auf den
A21: entsprechenden Button anzeigen lassen.
A23: 4. Die Richtigkeit Ihrer Buchungen wird bestätigt oder Sie werden auf
A24: Fehler hingewiesen. (Ohne Buchung werden Fehler angezeigt.)
A26: 5. Hauptbuch, Gewinn und Verlust und Bilanzbuch werden automatisch erstellt.

Sheet Grundbuch
A2: Geschäftsvorfälle
A3: Grundbuch
G4: 0.19
A6: 1. | B6: Zieleinkauf von Hilfsstoffen, | D6: netto | E6: 7300 | F6: =IF(AND(B10="2020",B11="2600",E10="4400"),"Die Konten sind richtig!","Mindestens ein Konto ist falsch!") -> Mindestens ein Konto ist falsch!
A7: Geschäftsvorfall | D7: USt. | E7: =E6*G4 -> 1387 | F7: =IF(AND(D10=E6,D11=E7,G10=E8),"Die Beträge sind richtig!","Mindestens ein Betrag ist falsch!") -> Mindestens ein Betrag ist falsch!
D8: brutto | E8: =SUM(E6:E7) -> 8687 | F8: =IF(AND(F6="Die Konten sind richtig!",F7="Die Beträge sind richtig!"),"Alles richtig!","Es sind noch Fehler vorhanden!") -> Es sind noch Fehler vorhanden!
B9: Soll | C9: Konto | D9: € | E9: Haben | F9: Konto | G9: €
A10: Buchungssatz | C10: =IF(B10="","",VLOOKUP(B10,Kontenplan!$A$4:$B$33,2)) ->  | F10: =IF(E10="","",VLOOKUP(E10,Kontenplan!$A$4:$B$33,2)) -> 
C11: =IF(B11="","",VLOOKUP(B11,Kontenplan!$A$4:$B$33,2)) -> 
A13: 2. | B13: Barverkauf von fertigen Erzeugnissen, | D13: netto | E13: 1500 | F13: =IF(AND(B17="2880",E17="5000",E18="4800"),"Die Konten sind richtig!","Mindestens ein Konto ist falsch!") -> Mindestens ein Konto ist falsch!
A14: Geschäftsvorfall | D14: USt. | E14: =E13*G4 -> 285 | F14: =IF(AND(D17=E15,G17=E13,G18=E14),"Die Beträge sind richtig!","Mindestens ein Betrag ist falsch!") -> Mindestens ein Betrag ist falsch!
D15: brutto | E15: =SUM(E13:E14) -> 1785 | F15: =IF(AND(F13="Die Konten sind richtig!",F14="Die Beträge sind richtig!"),"Alles richtig!","Es sind noch Fehler vorhanden!") -> Es sind noch Fehler vorhanden!
B16: Soll | C16: Konto | D16: € | E16: Haben | F16: Konto | G16: €
A17: Buchungssatz | C17: =IF(B17="","",VLOOKUP(B17,Kontenplan!$A$4:$B$33,2)) ->  | F17: =IF(E17="","",VLOOKUP(E17,Kontenplan!$A$4:$B$33,2)) -> 
F18: =IF(E18="","",VLOOKUP(E18,Kontenplan!$A$4:$B$33,2)) -> 
A20: 3. | B20: Banküberweisung für - Löhne | E20: 7900 | F20: =IF(AND(B24="6200",B25="6300",E24="2800"),"Die Konten sind richtig!","Mindestens ein Konto ist falsch!") -> Mindestens ein Konto ist falsch!
A21: Geschäftsvorfall | C21: - Gehälter | E21: 4000 | F21: =IF(AND(D24=E20,D25=E21,G24=E22),"Die Beträge sind richtig!","Mindestens ein Betrag ist falsch!") -> Mindestens ein Betrag ist falsch!
C22: Banklastschrift | E22: =SUM(E20:E21) -> 11900 | F22: =IF(AND(F20="Die Konten sind richtig!",F21="Die Beträge sind richtig!"),"Alles richtig!","Es sind noch Fehler vorhanden!") -> Es sind noch Fehler vorhanden!
B23: Soll | C23: Konto | D23: € | E23: Haben | F23: Konto | G23: €
A24: Buchungssatz | C24: =IF(B24="","",VLOOKUP(B24,Kontenplan!$A$4:$B$33,2)) ->  | F24: =IF(E24="","",VLOOKUP(E24,Kontenplan!$A$4:$B$33,2)) -> 
C25: =IF(B25="","",VLOOKUP(B25,Kontenplan!$A$4:$B$33,2)) -> 
A27: 4. | B27: Verkauf von fertigen Erzeugnissen | D27: netto | E27: 16000 | F27: =IF(AND(B31="2800",E31="5000",E32="4800"),"Die Konten sind richtig!","Mindestens ein Konto ist falsch!") -> Mindestens ein Konto ist falsch!
A28: Geschäftsvorfall | B28: gegen Bankscheck, | D28: USt. | E28: =E27*G4 -> 3040 | F28: =IF(AND(D31=E29,G31=E27,G32=E28),"Die Beträge sind richtig!","Mindestens ein Betrag ist falsch!") -> Mindestens ein Betrag ist falsch!
D29: brutto | E29: =SUM(E27:E28) -> 19040 | F29: =IF(AND(F27="Die Konten sind richtig!",F28="Die Beträge sind richtig!"),"Alles richtig!","Es sind noch Fehler vorhanden!") -> Es sind noch Fehler vorhanden!
B30: Soll | C30: Konto | D30: € | E30: Haben | F30: Konto | G30: €
A31: Buchungssatz | C31: =IF(B31="","",VLOOKUP(B31,Kontenplan!$A$4:$B$33,2)) ->  | F31: =IF(E31="","",VLOOKUP(E31,Kontenplan!$A$4:$B$33,2)) -> 
F32: =IF(E32="","",VLOOKUP(E32,Kontenplan!$A$4:$B$33,2)) -> 
A34: 5. | B34: Stoffverbrauch lt. Materialentnahmescheine für | F34: =IF(AND(B39="6000",E39="2000",B40="6020",E40="2020",B41="6030",E41="2030"),"Die Konten sind richtig!","Mindestens ein Konto ist falsch!") -> Mindestens ein Konto ist falsch!
A35: Geschäftsvorfall | C35: - Rohstoffe | E35: 3900
C36: - Hilfsstoffe | E36: 5100 | F36: =IF(AND(D39=E35,D40=E36,D41=E37,G39=E35,G40=E36,G41=E37),"Die Beträge sind richtig!","Mindestens ein Betrag ist falsch!") -> Mindestens ein Betrag ist falsch!
C37: - Betriebsstoffe | E37: 950 | F37: =IF(AND(F34="Die Konten sind richtig!",F36="Die Beträge sind richtig!"),"Alles richtig!","Es sind noch Fehler vorhanden!") -> Es sind noch Fehler vorhanden!
B38: Soll | C38: Konto | D38: € | E38: Haben | F38: Konto | G38: €
A39: Buchungssatz | C39: =IF(B39="","",VLOOKUP(B39,Kontenplan!$A$4:$B$33,2)) ->  | F39: =IF(E39="","",VLOOKUP(E39,Kontenplan!$A$4:$B$33,2)) -> 
C40: =IF(B40="","",VLOOKUP(B40,Kontenplan!$A$4:$B$33,2)) ->  | F40: =IF(E40="","",VLOOKUP(E40,Kontenplan!$A$4:$B$33,2)) -> 
C41: =IF(B41="","",VLOOKUP(B41,Kontenplan!$A$4:$B$33,2)) ->  | F41: =IF(E41="","",VLOOKUP(E41,Kontenplan!$A$4:$B$33,2)) -> 
A43: 6. | B43: Verkauf von fertigen Erzeugnissen auf Ziel, | D43: netto | E43: 44000 | F43: =IF(AND(B47="2400",E47="5000",E48="4800"),"Die Konten sind richtig!","Mindestens ein Konto ist falsch!") -> Mindestens ein Konto ist falsch!
A44: Geschäftsvorfall | D44: USt. | E44: =E43*G4 -> 8360 | F44: =IF(AND(D47=E45,G47=E43,G48=E44),"Die Beträge sind richtig!","Mindestens ein Betrag ist falsch!") -> Mindestens ein Betrag ist falsch!
D45: brutto | E45: =SUM(E43:E44) -> 52360 | F45: =IF(AND(F43="Die Konten sind richtig!",F44="Die Beträge sind richtig!"),"Alles richtig!","Es sind noch Fehler vorhanden!") -> Es sind noch Fehler vorhanden!
B46: Soll | C46: Konto | D46: € | E46: Haben | F46: Konto | G46: €
A47: Buchungssatz | C47: =IF(B47="","",VLOOKUP(B47,Kontenplan!$A$4:$B$33,2)) ->  | F47: =IF(E47="","",VLOOKUP(E47,Kontenplan!$A$4:$B$33,2)) -> 
F48: =IF(E48="","",VLOOKUP(E48,Kontenplan!$A$4:$B$33,2)) -> 
A50: 7. | B50: Barzahlung für Werbeinserat in der Presse, | D50: netto | E50: 500 | F50: =IF(AND(B54="6870",B55="2600",E54="2880"),"Die Konten sind richtig!","Mindestens ein Konto ist falsch!") -> Mindestens ein Konto ist falsch! | K50: =IF(J50="","",VLOOKUP(J50,Kontenplan!$A$4:$B$33,2)) -> 
A51: Geschäftsvorfall | D51: USt. | E51: =E50*G4 -> 95 | F51: =IF(AND(D54=E50,D55=E51,G54=E52),"Die Beträge sind richtig!","Mindestens ein Betrag ist falsch!") -> Mindestens ein Betrag ist falsch!
D52: brutto | E52: =SUM(E50:E51) -> 595 | F52: =IF(AND(F50="Die Konten sind richtig!",F51="Die Beträge sind richtig!"),"Alles richtig!","Es sind noch Fehler vorhanden!") -> Es sind noch Fehler vorhanden!
B53: Soll | C53: Konto | D53: € | E53: Haben | F53: Konto | G53: €
A54: Buchungssatz | C54: =IF(B54="","",VLOOKUP(B54,Kontenplan!$A$4:$B$33,2)) ->  | F54: =IF(E54="","",VLOOKUP(E54,Kontenplan!$A$4:$B$33,2)) -> 
C55: =IF(B55="","",VLOOKUP(B55,Kontenplan!$A$4:$B$33,2)) -> 
A57: 8. | B57: Zinsgutschrift der Bank, | E57: 140 | F57: =IF(AND(B61="2800",E61="5710"),"Die Konten sind richtig!","Mindestens ein Konto ist falsch!") -> Mindestens ein Konto ist falsch!
A58: Geschäftsvorfall | F58: =IF(AND(D61=E57,G61=E57),"Die Beträge sind richtig!","Mindestens ein Betrag ist falsch!") -> Mindestens ein Betrag ist falsch!
F59: =IF(AND(F57="Die Konten sind richtig!",F58="Die Beträge sind richtig!"),"Alles richtig!","Es sind noch Fehler vorhanden!") -> Es sind noch Fehler vorhanden!
B60: Soll | C60: Konto | D60: € | E60: Haben | F60: Konto | G60: €
A61: Buchungssatz | C61: =IF(B61="","",VLOOKUP(B61,Kontenplan!$A$4:$B$33,2)) ->  | F61: =IF(E61="","",VLOOKUP(E61,Kontenplan!$A$4:$B$33,2)) -> 
A64: 9. | B64: Unser Mieter überweist | F64: =IF(AND(B68="2800",E68="5400"),"Die Konten sind richtig!","Mindestens ein Konto ist falsch!") -> Mindestens ein Konto ist falsch!
A65: Geschäftsvorfall | B65: für den laufenden Monat, | E65: 850 | F65: =IF(AND(D68=E65,G68=E65),"Die Beträge sind richtig!","Mindestens ein Betrag ist falsch!") -> Mindestens ein Betrag ist falsch!
F66: =IF(AND(F64="Die Konten sind richtig!",F65="Die Beträge sind richtig!"),"Alles richtig!","Es sind noch Fehler vorhanden!") -> Es sind noch Fehler vorhanden!
B67: Soll | C67: Konto | D67: € | E67: Haben | F67: Konto | G67: €
A68: Buchungssatz | C68: =IF(B68="","",VLOOKUP(B68,Kontenplan!$A$4:$B$33,2)) ->  | F68: =IF(E68="","",VLOOKUP(E68,Kontenplan!$A$4:$B$33,2)) -> 
A71: 10. | B71: Überweisung an das Finanzamt für KFZ-Steuer, | E71: 720 | F71: =IF(AND(B75="7030",E75="2800"),"Die Konten sind richtig!","Mindestens ein Konto ist falsch!") -> Mindestens ein Konto ist falsch!
A72: Geschäftsvorfall | F72: =IF(AND(D75=E71,G75=E71),"Die Beträge sind richtig!","Mindestens ein Betrag ist falsch!") -> Mindestens ein Betrag ist falsch!
F73: =IF(AND(F71="Die Konten sind richtig!",F72="Die Beträge sind richtig!"),"Alles richtig!","Es sind noch Fehler vorhanden!") -> Es sind noch Fehler vorhanden!
B74: Soll | C74: Konto | D74: € | E74: Haben | F74: Konto | G74: €
A75: Buchungssatz | C75: =IF(B75="","",VLOOKUP(B75,Kontenplan!$A$4:$B$33,2)) ->  | F75: =IF(E75="","",VLOOKUP(E75,Kontenplan!$A$4:$B$33,2)) -> 
A78: 11. | B78: Zieleinkauf von Rohstoffen, | D78: netto | E78: 5200 | F78: =IF(AND(B82="2000",B83="2600",E82="4400"),"Die Konten sind richtig!","Mindestens ein Konto ist falsch!") -> Mindestens ein Konto ist falsch!
A79: Geschäftsvorfall | D79: USt. | E79: =E78*G4 -> 988 | F79: =IF(AND(D82=E78,D83=E79,G82=E80),"Die Beträge sind richtig!","Mindestens ein Betrag ist falsch!") -> Mindestens ein Betrag ist falsch!
D80: brutto | E80: =SUM(E78:E79) -> 6188 | F80: =IF(AND(F78="Die Konten sind richtig!",F79="Die Beträge sind richtig!"),"Alles richtig!","Es sind noch Fehler vorhanden!") -> Es sind noch Fehler vorhanden!
B81: Soll | C81: Konto | D81: € | E81: Haben | F81: Konto | G81: €
A82: Buchungssatz | C82: =IF(B82="","",VLOOKUP(B82,Kontenplan!$A$4:$B$33,2)) ->  | F82: =IF(E82="","",VLOOKUP(E82,Kontenplan!$A$4:$B$33,2)) -> 
C83: =IF(B83="","",VLOOKUP(B83,Kontenplan!$A$4:$B$33,2)) -> 
A85: 12. | B85: Barzahlung für die Reparatur | D85: netto | E85: 150 | F85: =IF(AND(B89="6160",B90="2600",E89="2880"),"Die Konten sind richtig!","Mindestens ein Konto ist falsch!") -> Mindestens ein Konto ist falsch!
A86: Geschäftsvorfall | B86: eines Schreibtischstuhls, | D86: USt. | E86: =E85*G4 -> 28.5 | F86: =IF(AND(D89=E85,D90=E86,G89=E87),"Die Beträge sind richtig!","Mindestens ein Betrag ist falsch!") -> Mindestens ein Betrag ist falsch!
D87: brutto | E87: =SUM(E85:E86) -> 178.5 | F87: =IF(AND(F85="Die Konten sind richtig!",F86="Die Beträge sind richtig!"),"Alles richtig!","Es sind noch Fehler vorhanden!") -> Es sind noch Fehler vorhanden!
B88: Soll | C88: Konto | D88: € | E88: Haben | F88: Konto | G88: €
A89: Buchungssatz | C89: =IF(B89="","",VLOOKUP(B89,Kontenplan!$A$4:$B$33,2)) ->  | F89: =IF(E89="","",VLOOKUP(E89,Kontenplan!$A$4:$B$33,2)) -> 
C90: =IF(B90="","",VLOOKUP(B90,Kontenplan!$A$4:$B$33,2)) -> 
A92: 13. | B92: Wir begleichen eine Liefererrechnung durch | F92: =IF(AND(B96="4400",E96="2800"),"Die Konten sind richtig!","Mindestens ein Konto ist falsch!") -> Mindestens ein Konto ist falsch!
A93: Geschäftsvorfall | B93: Banküberweisung | E93: 10600 | F93: =IF(AND(D96=E93,G96=E93),"Die Beträge sind richtig!","Mindestens ein Betrag ist falsch!") -> Mindestens ein Betrag ist falsch!
F94: =IF(AND(F92="Die Konten sind richtig!",F93="Die Beträge sind richtig!"),"Alles richtig!","Es sind noch Fehler vorhanden!") -> Es sind noch Fehler vorhanden!
B95: Soll | C95: Konto | D95: € | E95: Haben | F95: Konto | G95: €
A96: Buchungssatz | C96: =IF(B96="","",VLOOKUP(B96,Kontenplan!$A$4:$B$33,2)) ->  | F96: =IF(E96="","",VLOOKUP(E96,Kontenplan!$A$4:$B$33,2)) -> 
A99: Abschlussangaben
A100: A1. | B100: Endbestände lt. Inventur | F100: =IF(AND(B104="8010",E104="2100",B105="8010",E105="2200"),"Die Konten sind richtig!","Mindestens ein Konto ist falsch!") -> Mindestens ein Konto ist falsch!
A101: Abschlussangabe | C101: - Unfertige Erzeugnisse | E101: 22000 | F101: =IF(AND(D104=E101,D105=E102,G104=E101,G105=E102),"Die Beträge sind richtig!","Mindestens ein Betrag ist falsch!") -> Mindestens ein Betrag ist falsch!
C102: - Fertige Erzeugnisse | E102: 14000 | F102: =IF(AND(F100="Die Konten sind richtig!",F101="Die Beträge sind richtig!"),"Alles richtig!","Es sind noch Fehler vorhanden!") -> Es sind noch Fehler vorhanden!
B103: Soll | C103: Konto | D103: € | E103: Haben | F103: Konto | G103: €
A104: Buchungssatz | C104: =IF(B104="","",VLOOKUP(B104,Kontenplan!$A$4:$B$33,2)) ->  | F104: =IF(E104="","",VLOOKUP(E104,Kontenplan!$A$4:$B$33,2)) -> 
C105: =IF(B105="","",VLOOKUP(B105,Kontenplan!$A$4:$B$33,2)) ->  | F105: =IF(E105="","",VLOOKUP(E105,Kontenplan!$A$4:$B$33,2)) -> 
A107: =IF(AND(F8="Alles richtig!",F15="Alles richtig!",F22="Alles richtig!",F29="Alles richtig!",F37="Alles richtig!",F45="Alles richtig!",F52="Alles richtig!",F59="Alles richtig!",F66="Alles richtig!",F73="Alles richtig!",F80="Alles richtig!",F87="Alles richtig!",F94="Alles richtig!",F102="Alles richtig!"),"Super, die Aufgabe ist gelöst!","Bilden Sie alle Buchungssätze!") -> Bilden Sie alle Buchungssätze!

Sheet Hauptbuch
A1: Hauptbuch
A3: Soll | B3: 0510 Bebaute Grundstücke | J3: Haben
A4: AB | B4: 8000 | E4: =Bilanzbuch!C4 -> 210000 | F4: SB | G4: 8010 | J4: =E4 -> 210000
A6: Soll | B6: 0700 Technische Anlagen und Maschinen | J6: Haben
A7: AB | B7: 8000 | E7: =Bilanzbuch!C5 -> 95000 | F7: SB | G7: 8010 | J7: =E7 -> 95000
A9: Soll | B9: 0800 Betriebs- und Geschäftsausstattung | J9: Haben
A10: AB | B10: 8000 | E10: =Bilanzbuch!C6 -> 41000 | F10: SB | G10: 8010 | J10: =E10 -> 41000
A12: Soll | B12: 2000 Rohstoffe | J12: Haben
A13: AB | B13: 8000 | E13: =Bilanzbuch!C7 -> 12000 | F13: 5. | G13: =Grundbuch!B39 ->  | J13: =Grundbuch!G39 -> 0
A14: 11. | B14: =Grundbuch!E82 ->  | E14: =Grundbuch!D82 -> 0 | F14: SB | G14: 8010 | J14: =J15-J13 -> 12000
E15: =SUM(E13:E14) -> 12000 | J15: =E15 -> 12000
A17: Soll | B17: 2020 Hilfsstoffe | J17: Haben
A18: AB | B18: 8000 | E18: =Bilanzbuch!C8 -> 10500 | F18: 5. | G18: =Grundbuch!B40 ->  | J18: =Grundbuch!G40 -> 0
A19: 1. | B19: =Grundbuch!E10 ->  | E19: =Grundbuch!D10 -> 0 | F19: SB | G19: 8010 | J19: =J20-J18 -> 10500
E20: =SUM(E18:E19) -> 10500 | J20: =E20 -> 10500
A22: Soll | B22: 2030 Betriebsstoffe | J22: Haben
A23: AB | B23: 8000 | E23: =Bilanzbuch!C9 -> 9300 | F23: 5. | G23: =Grundbuch!B41 ->  | J23: =Grundbuch!G41 -> 0
F24: SB | G24: 8010 | J24: =J25-J23 -> 9300
E25: =SUM(E23:E24) -> 9300 | J25: =E25 -> 9300
A27: Soll | B27: 2100 Unfertige Erzeugnisse | J27: Haben
A28: AB | B28: 8000 | E28: =Bilanzbuch!C10 -> 17600 | F28: SB | G28: =Grundbuch!B104 ->  | J28: =Grundbuch!G104 -> 0
A29: =IF(E28<J28,"A","") ->  | B29: =IF(E28<J28,5200,"") ->  | E29: =IF(E28<J28,E30-E28,"") ->  | F29: =IF(E28>J28,"A","") -> A | G29: =IF(J28<E28,5200,"") -> 5200 | J29: =IF($E$28>$J$28,J30-J28,"") -> 17600
E30: =IF($E$28>$J$28,$E$28,$J$28) -> 17600 | J30: =IF($E$28>$J$28,$E$28,$J$28) -> 17600
A32: Soll | B32: 2200 Fertige Erzeugnisse | J32: Haben
A33: AB | B33: 8000 | E33: =Bilanzbuch!C11 -> 12900 | F33: SB | G33: =Grundbuch!B105 ->  | J33: =Grundbuch!G105 -> 0
A34: =IF(E33<J33,"A","") ->  | B34: =IF(E33<J33,5200,"") ->  | E34: =IF(E33<E35,E35-E33,"") ->  | F34: =IF(J33<E33,"A","") -> A | G34: =IF(J33<E33,5200,"") -> 5200 | J34: =IF(J33<E33,J35-J33,"") -> 12900
E35: =IF(E33>J33,E33,J33) -> 12900 | J35: =IF(E33>J33,E33,J33) -> 12900
A37: Soll | B37: 2400 Forderungen aus Lieferungen und Leistungen | J37: Haben
A38: AB | B38: 8000 | E38: =Bilanzbuch!C12 -> 22800 | F38: SB | G38: 8010 | J38: =J40 -> 22800
A39: 6. | B39: =Grundbuch!E47 ->  | C39: =Grundbuch!E48 ->  | E39: =Grundbuch!D47 -> 0
E40: =SUM(E38:E39) -> 22800 | J40: =E40 -> 22800
A42: Soll | B42: 2600 Vorsteuer | J42: Haben
A43: 1. | B43: =Grundbuch!E10 ->  | E43: =Grundbuch!D11 -> 0 | F43: SB | G43: 4800 | J43: =J47 -> 0
A44: 7. | B44: =Grundbuch!E54 ->  | E44: =Grundbuch!D55 -> 0
A45: 11. | B45: =Grundbuch!E82 ->  | E45: =Grundbuch!D83 -> 0
A46: 12. | B46: =Grundbuch!E89 ->  | E46: =Grundbuch!D90 -> 0
E47: =SUM(E43:E46) -> 0 | J47: =E47 -> 0
A49: Soll | B49: 2800 Kreditinstitute/Bank | J49: Haben
A50: AB | B50: 8000 | E50: =Bilanzbuch!C13 -> 13000 | F50: 3. | G50: =Grundbuch!B24 ->  | H50: =Grundbuch!B25 ->  | J50: =Grundbuch!G24 -> 0
A51: 4. | B51: =Grundbuch!E31 ->  | C51: =Grundbuch!E32 ->  | E51: =Grundbuch!D31 -> 0 | F51: 10. | G51: =Grundbuch!B75 ->  | J51: =Grundbuch!G75 -> 0
A52: 8. | B52: =Grundbuch!E61 ->  | E52: =Grundbuch!D61 -> 0 | F52: 13. | G52: =Grundbuch!B96 ->  | J52: =Grundbuch!G96 -> 0
A53: 9. | B53: =Grundbuch!E68 ->  | E53: =Grundbuch!D68 -> 0 | F53: SB | G53: 8010 | J53: =J54-SUM(J50:J52) -> 13000
E54: =SUM(E50:E53) -> 13000 | J54: =E54 -> 13000
A56: Soll | B56: 2880 Kasse | J56: Haben
A57: AB | B57: 8000 | E57: =Bilanzbuch!C14 -> 6750 | F57: 7. | G57: =Grundbuch!B54 ->  | H57: =Grundbuch!B55 ->  | J57: =Grundbuch!G54 -> 0
A58: 2. | B58: =Grundbuch!E17 ->  | C58: =Grundbuch!E18 ->  | E58: =Grundbuch!D17 -> 0 | F58: 12. | G58: =Grundbuch!B89 ->  | H58: =Grundbuch!B90 ->  | J58: =Grundbuch!G89 -> 0
F59: SB | G59: 8010 | J59: =J60-SUM(J57:J58) -> 6750
E60: =SUM(E57:E59) -> 6750 | J60: =E60 -> 6750
A62: Soll | B62: 3000 Eigenkapital | J62: Haben
A63: A | B63: 8020 | E63: =IF(GuV!F8>0,GuV!F8,0) -> 30500 | F63: AB | G63: 8000 | J63: =Bilanzbuch!F4 -> 400000
A64: SB | B64: 8010 | E64: =E65-E63 -> 369500 | F64: A | G64: 8020 | J64: =IF(GuV!C13>0,GuV!C13,0) -> 0
E65: =J65 -> 400000 | J65: =SUM(J63:J64) -> 400000
A67: Soll | B67: 4400 Verbindlichkeiten aus Lieferungen und Leistungen | J67: Haben
A68: 13. | B68: =Grundbuch!E96 ->  | E68: =Grundbuch!D96 -> 0 | F68: AB | G68: 8000 | J68: =Bilanzbuch!F5 -> 50850
A69: SB | B69: 8010 | E69: =E71-E68 -> 50850 | F69: 1. | G69: =Grundbuch!B10 ->  | H69: =Grundbuch!B11 ->  | J69: =Grundbuch!G10 -> 0
F70: 11. | G70: =Grundbuch!B82 ->  | H70: =Grundbuch!B83 ->  | J70: =Grundbuch!G82 -> 0
E71: =J71 -> 50850 | J71: =SUM(J68:J70) -> 50850
A73: Soll | B73: 4800 Umsatzsteuer | J73: Haben
A74: A | B74: 2600 | E74: =J43 -> 0 | F74: 2. | G74: =Grundbuch!B17 ->  | J74: =Grundbuch!G18 -> 0
A75: SB | B75: 8010 | E75: =E77-E74 -> 0 | F75: 4. | G75: =Grundbuch!B31 ->  | J75: =Grundbuch!G32 -> 0
F76: 6. | G76: =Grundbuch!B47 ->  | J76: =Grundbuch!G48 -> 0
E77: =J77 -> 0 | J77: =SUM(J74:J76) -> 0
A79: Soll | B79: 5000 Umsatzerlöse | J79: Haben
A80: A | B80: 8020 | E80: =E83 -> 0 | F80: 2. | G80: =Grundbuch!B17 ->  | J80: =Grundbuch!G17 -> 0
F81: 4. | G81: =Grundbuch!B31 ->  | J81: =Grundbuch!G31 -> 0
F82: 6. | G82: =Grundbuch!B47 ->  | J82: =Grundbuch!G47 -> 0
E83: =J83 -> 0 | J83: =SUM(J80:J82) -> 0
A85: Soll | B85: 5200 Bestandsveränderunen | J85: Haben
A86: =IF(J28<E28,"A","") -> A | B86: =IF(J28<E28,2100,"") -> 2100 | E86: =IF(J28<E28,J29,0) -> 17600 | F86: =IF(E28<J28,"A","") ->  | G86: =IF(E28<J28,2100,"") ->  | J86: =IF(E28<J28,E29,0) -> 0
A87: =IF(J33<E33,"A","") -> A | B87: =IF(J33<E33,2200,"") -> 2200 | E87: =IF(J33<E33,J34,0) -> 12900 | F87: =IF(E33<J33,"A","") ->  | G87: =IF(E33<J33,2200,"") ->  | J87: =IF(E33<J33,E34,0) -> 0
A88: =IF(($J$86+$J$87)>($E$86+$E$87),"A","") ->  | B88: =IF(($J$86+$J$87)>($E$86+$E$87),"8020","") ->  | E88: =IF(($J$86+$J$87)>($E$86+$E$87),($J$86+$J$87)-(E86+E87),0) -> 0 | F88: =IF(($J$86+$J$87)<($E$86+$E$87),"A","") -> A | G88: =IF(($J$86+$J$87)<($E$86+$E$87),"8020","") -> 8020 | J88: =IF(($J$86+$J$87)<($E$86+$E$87),($E$86+$E$87)-(J86+J87),0) -> 30500
E89: =IF(($J$86+$J$87)>($E$86+$E$87),($J$86+$J$87),($E$86+$E$87)) -> 30500 | J89: =IF(($J$86+$J$87)>($E$86+$E$87),($J$86+$J$87),($E$86+$E$87)) -> 30500
A91: Soll | B91: 5400 Mieterträge | J91: Haben
A92: A | B92: 8020 | E92: =J92 -> 0 | F92: 9. | G92: =Grundbuch!B68 ->  | J92: =Grundbuch!G68 -> 0
A94: Soll | B94: 5710 Zinserträge | J94: Haben
A95: A | B95: 8020 | E95: =J95 -> 0 | F95: 8. | G95: =Grundbuch!B61 ->  | J95: =Grundbuch!G61 -> 0
A97: Soll | B97: 6000 Aufwendungen für Rohstoffe | J97: Haben
A98: 5. | B98: =Grundbuch!E39 ->  | E98: =Grundbuch!D39 -> 0 | F98: A | G98: 8020 | J98: =E98 -> 0
A100: Soll | B100: 6020 Aufwendungen für Hilfsstoffe | J100: Haben
A101: 5. | B101: =Grundbuch!E40 ->  | E101: =Grundbuch!D40 -> 0 | F101: A | G101: 8020 | J101: =E101 -> 0
A103: Soll | B103: 6030 Aufwendungen für Betriebsstoffe | J103: Haben
A104: 5. | B104: =Grundbuch!E41 ->  | E104: =Grundbuch!D41 -> 0 | F104: A | G104: 8020 | J104: =E104 -> 0
A106: Soll | B106: 6160 Fremdinstandhaltung | J106: Haben
A107: 12. | B107: =Grundbuch!E89 ->  | E107: =Grundbuch!D89 -> 0 | F107: A | G107: 8020 | J107: =E107 -> 0
A109: Soll | B109: 6200 Löhne | J109: Haben
A110: 3. | B110: =Grundbuch!E24 ->  | E110: =Grundbuch!D24 -> 0 | F110: A | G110: 8020 | J110: =E110 -> 0
A112: Soll | B112: 6300 Gehälter | J112: Haben
A113: 3. | B113: =Grundbuch!E24 ->  | E113: =Grundbuch!D25 -> 0 | F113: A | G113: 8020 | J113: =E113 -> 0
A115: Soll | B115: 6870 Werbung | J115: Haben
A116: 7. | B116: =Grundbuch!E54 ->  | E116: =Grundbuch!D54 -> 0 | F116: A | G116: 8020 | J116: =E116 -> 0
A118: Soll | B118: 7030 Kraftfahrzeugsteuer | J118: Haben
A119: 10. | B119: =Grundbuch!E75 ->  | E119: =Grundbuch!D75 -> 0 | F119: A | G119: 8020 | J119: =E119 -> 0

Sheet GuV
A1: Gewinn- und Verlustrechnung
A3: Soll | B3: 8020 Gewinn und Verlust | F3: Haben
A4: 5200 | B4: Bestandsveränderungen | C4: =IF(Hauptbuch!J88>0,Hauptbuch!J88,0) -> 30500 | D4: 5000 | E4: Umsatzerlöse | F4: =Hauptbuch!E80 -> 0
A5: 6000 | B5: Aufwendungen für Rohstoffe | C5: =Hauptbuch!J98 -> 0 | D5: 5200 | E5: Bestandsveränderungen | F5: =IF(Hauptbuch!E88>0,Hauptbuch!E88,0) -> 0
A6: 6020 | B6: Aufwendungen für Hilfsstoffe | C6: =Hauptbuch!E101 -> 0 | D6: 5400 | E6: Mieterträge | F6: =Hauptbuch!E92 -> 0
A7: 6030 | B7: Aufwendungen für Betriebsstoffe | C7: =Hauptbuch!J104 -> 0 | D7: 5710 | E7: Zinserträge | F7: =Hauptbuch!E95 -> 0
A8: 6160 | B8: Fremdinstandhaltung | C8: =Hauptbuch!J107 -> 0 | D8: 3000 | E8: Eigenkapital | F8: =IF(SUM($F$4:$F$7)>SUM($C$4:$C$12),0,SUM($C$4:$C$12)-SUM(F4:F7)) -> 30500
A9: 6200 | B9: Löhne | C9: =Hauptbuch!J110 -> 0
A10: 6300 | B10: Gehälter | C10: =Hauptbuch!J113 -> 0
A11: 6870 | B11: Werbung | C11: =Hauptbuch!J116 -> 0
A12: 7030 | B12: Kraftfahrzeugsteuer | C12: =Hauptbuch!J119 -> 0
A13: 3000 | B13: Eigenkapital | C13: =IF(SUM($F$4:$F$7)>SUM($C$4:$C$12),SUM($F$4:$F$7)-SUM($C$4:$C$12),0) -> 0
C14: =IF(SUM($F$4:$F$7)>SUM($C$4:$C$12),SUM($F$4:$F$7),SUM($C$4:$C$12)) -> 30500 | F14: =IF(SUM($F$4:$F$7)>SUM($C$4:$C$12),SUM($F$4:$F$7),SUM($C$4:$C$12)) -> 30500

Sheet Bilanzbuch
A1: Bilanzbuch
A3: Aktiva | B3: 8000 Eröffnungsbilanz | F3: Passiva
A4: 0510 | B4: Bebaute Grundstücke | C4: 210000 | D4: 3000 | E4: Eigenkapital | F4: =F15-SUM(F5:F14) -> 400000
A5: 0700 | B5: Technische Anlagen und Maschinen | C5: 95000 | D5: 4400 | E5: Verbindlichkeiten a.L.u.L. | F5: 50850
A6: 0800 | B6: Betriebs- und Geschäftsausstattung | C6: 41000
A7: 2000 | B7: Rohstoffe | C7: 12000
A8: 2020 | B8: Hilfsstoffe | C8: 10500
A9: 2040 | B9: Betriebsstoffe | C9: 9300
A10: 2100 | B10: Unfertige Erzeugnisse | C10: 17600
A11: 2200 | B11: Fertige Erzeugnisse | C11: 12900
A12: 2400 | B12: Forderungen a.L.u.L. | C12: 22800
A13: 2800 | B13: Bank | C13: 13000
A14: 2880 | B14: Kasse | C14: 6750
C15: =SUM(C4:C14) -> 450850 | F15: =C15 -> 450850
A17: Aktiva | B17: 8010 Schlussbilanz | F17: Passiva
A18: 0510 | B18: Bebaute Grundstücke | C18: =Hauptbuch!J4 -> 210000 | D18: 3000 | E18: Eigenkapital | F18: =Hauptbuch!E64 -> 369500
A19: 0700 | B19: Technische Anlagen und Maschinen | C19: =Hauptbuch!J7 -> 95000 | D19: 4400 | E19: Verbindlichkeiten a.L.u.L. | F19: =Hauptbuch!E69 -> 50850
A20: 0800 | B20: Betriebs- und Geschäftsausstattung | C20: =Hauptbuch!J10 -> 41000 | D20: 4800 | E20: Umsatzsteuer | F20: =Hauptbuch!E75 -> 0
A21: 2000 | B21: Rohstoffe | C21: =Hauptbuch!J14 -> 12000
A22: 2020 | B22: Hilfsstoffe | C22: =Hauptbuch!J19 -> 10500
A23: 2040 | B23: Betriebsstoffe | C23: =Hauptbuch!J24 -> 9300
A24: 2100 | B24: Unfertige Erzeugnisse | C24: =Grundbuch!D104 -> 0
A25: 2200 | B25: Fertige Erzeugnisse | C25: =Grundbuch!D105 -> 0
A26: 2400 | B26: Forderungen a.L.u.L. | C26: =Hauptbuch!J38 -> 22800
A27: 2800 | B27: Bank | C27: =Hauptbuch!J53 -> 13000
A28: 2880 | B28: Kasse | C28: =Hauptbuch!J59 -> 6750
C29: =SUM(C18:C28) -> 420350 | F29: =SUM(F18:F28) -> 420350

Sheet Kontenplan
B1: Kontenplan
A3: Nr. | B3: Konto
A4: 0510 | B4: Bebaute Grundstücke
A5: 0700 | B5: Technische Anlagen und Maschinen
A6: 0800 | B6: Beriebs- und Geschäftsausstattung
A7: 2000 | B7: Rohstoffe
A8: 2020 | B8: Hilfsstoffe
A9: 2030 | B9: Betriebsstoffe
A10: 2100 | B10: Unfertige Erzeugnisse
A11: 2200 | B11: Fertige Erzeugnisse
A12: 2400 | B12: Forderungen a.L.u.L.
A13: 2600 | B13: Vorsteuer
A14: 2800 | B14: Kreditinstitute/Bank
A15: 2880 | B15: Kasse
A16: 3000 | B16: Eigenkapital
A17: 4400 | B17: Verbindlichkeiten a.L.u.L.
A18: 4800 | B18: Umsatzsteuer
A19: 5000 | B19: Umsatzerlöse
A20: 5200 | B20: Bestandsveränderungen
A21: 5400 | B21: Mieterträge
A22: 5710 | B22: Zinserträge
A23: 6000 | B23: Aufwendungen für Rohstoffe
A24: 6020 | B24: Aufwendungen für Hilfsstoffe
A25: 6030 | B25: Aufwendungen für Betriebsstoffe
A26: 6160 | B26: Fremdinstandhaltung
A27: 6200 | B27: Löhne
A28: 6300 | B28: Gehälter
A29: 6870 | B29: Werbung
A30: 7030 | B30: Kraftfahrzeugsteuer
A31: 8000 | B31: Eröffnungsbilanz
A32: 8010 | B32: Schlussbilanz
A33: 8020 | B33: Gewinn und Verlust
